lending/lending_fUSD_20250122
["ID","MTS","AMOUNT","RATE_DAILY","PERIOD"]
[349953467,1737534650193,-500.0,0.00019996,2]
[349953468,1737534650203,-1357.12,0.00019996,2]
[349953469,1737534650215,-628.45,0.00019996,2]
[349953470,1737534650228,-846.46,0.00019996,2]
[349953471,1737534650238,-751.94,0.00019996,2]
[349953472,1737534650248,-500.0,0.00019996,2]
[349953473,1737534650257,-500.0,0.00019996,2]
[349953474,1737534650267,-500.0,0.00019996,2]
[349953475,1737534650281,-1535.03,0.00019996,2]
[349953476,1737534650291,-531.25,0.00019996,2]
[349953477,1737534650301,-1286.53,0.00019996,2]
[349953478,1737534650311,-1081.56,0.00019996,2]
[349953479,1737534650320,-500.0,0.00019996,2]
[349953480,1737534650330,-500.0,0.00019996,2]
[349953481,1737534650340,-500.0,0.00019996,2]
[349953482,1737534650350,-904.23,0.00019996,2]
[349953483,1737534650359,-500.0,0.00019996,2]
[349953484,1737534650370,-500.0,0.00019996,2]
[349953485,1737534650380,-500.0,0.00019996,2]
[349953486,1737534650390,-500.0,0.00019996,2]
[349953487,1737534650400,-1037.10875048,0.00019998,5]
[349953488,1737534650410,-600.99,0.00019999,2]
[349953489,1737534650422,-190.82185058,0.00019999,2]
[349953490,1737534650431,-1752.18620611,0.0002,2]
[349953491,1737534650442,-16725.14439749,0.0002,2]
[349953492,1737534650452,-707935.0,0.0002,2]
[349953493,1737534650461,-36748.64843453,0.0002,2]
[349953494,1737534650471,-1997.0,0.0002,2]
[349953495,1737534650482,-12500.0,0.0002,2]
[349953496,1737534650491,-10000.0,0.0002,2]
[349953497,1737534650501,-1939.10602016,0.0002,2]
[349953498,1737534650515,-61446.2124091,0.0002,4]
[349953499,1737534650525,-999.0,0.0002,2]
[349953500,1737534650535,-1000.0,0.0002,2]
[349953501,1737534650545,-12499.99,0.0002,2]
[349953502,1737534650556,-9999.99,0.0002,2]
[349953503,1737534650567,-1045.62228733,0.0002001,2]
[349953504,1737534650576,-2242.40864827,0.00020037,2]
[349953505,1737534650725,-1545.73220754,0.00020038,2]
[349953506,1737534650737,-12500.0,0.0002004,2]
[349953507,1737534650746,-676.37,0.00020041,7]
[349953508,1737534650755,-676.37,0.00020041,7]
[349953509,1737534650765,-200.0,0.00020064,2]
[349953510,1737534650785,-205.40745367,0.00020067,2]
[349953511,1737534650802,-166.63,0.00020071,2]
[349953512,1737534650812,-12500.0,0.0002008,2]
[349953513,1737534650821,-2574.25,0.00020082,2]
[349953514,1737534650831,-10000.0,0.00020107,2]
[349953515,1737534650840,-2515.51,0.0002012,2]
[349953516,1737534650850,-12500.0,0.0002012,2]
[349953517,1737534650860,-600.99,0.00020136,2]
[349953518,1737534650870,-205.40745367,0.0002015,2]
[349953519,1737534650879,-219.81421851,0.00020157,2]
[349953520,1737534650890,-12500.0,0.0002016,2]
[349953521,1737534650900,-2242.40864827,0.0002021,2]
[349953522,1737534650909,-1545.73220754,0.0002021,2]
[349953523,1737534650921,-205.40745367,0.00020233,2]
[349953524,1737534650930,-2504.86,0.00020246,2]
[349953525,1737534650940,-2523.84,0.00020257,2]
[349953526,1737534650950,-300.0,0.00020257,2]
[349953527,1737534650959,-200.0,0.00020264,2]
[349953528,1737534650969,-500.0,0.00020268,2]
[349953529,1737534650978,-500.0,0.00020268,2]
[349953530,1737534650988,-500.0,0.00020268,2]
[349953531,1737534650997,-500.0,0.00020268,2]
[349953532,1737534651007,-500.0,0.00020268,2]
[349953533,1737534651016,-500.0,0.00020268,2]
[349953534,1737534651025,-503.79,0.00020268,2]
[349953535,1737534651034,-500.0,0.00020268,2]
[349953536,1737534651043,-500.0,0.00020268,2]
[349953537,1737534651052,-500.0,0.00020268,2]
[349953538,1737534651062,-500.0,0.00020268,2]
[349953539,1737534651072,-852.68,0.00020268,2]
[349953540,1737534651081,-500.0,0.00020268,2]
[349953541,1737534651091,-500.0,0.00020268,2]
[349953542,1737534651100,-500.0,0.00020268,2]
[349953543,1737534651109,-500.0,0.00020268,2]
[349953544,1737534651118,-602.67,0.00020268,2]
[349953545,1737534651128,-500.0,0.00020268,2]
[349953546,1737534651137,-500.0,0.00020268,2]
[349953547,1737534651146,-500.0,0.00020268,2]
[349953548,1737534651155,-500.0,0.00020268,2]
[349953549,1737534651164,-500.0,0.00020268,2]
[349953550,1737534651173,-500.0,0.00020268,2]
[349953551,1737534651182,-500.0,0.00020268,2]
[349953552,1737534651191,-500.0,0.00020268,2]
[349953553,1737534651201,-333.71716556,0.00020268,2]
[349953554,1737534651211,-500.0,0.00020268,2]
[349953555,1737534651220,-647.65,0.00020268,2]
[349953556,1737534651229,-500.0,0.00020268,2]
[349953557,1737534651238,-444.19317762,0.00020268,2]
[349953558,1737534651248,-687.02,0.00020268,2]
[349953559,1737534651258,-500.0,0.00020268,2]
[349953560,1737534651267,-500.0,0.00020268,2]
[349953561,1737534651276,-500.0,0.00020268,2]
[349953562,1737534651286,-500.0,0.00020268,2]
[349953563,1737534651296,-500.0,0.00020268,2]
[349953564,1737534651306,-500.0,0.00020268,2]
[349953565,1737534651315,-500.0,0.00020268,2]
[349953566,1737534651325,-944.8,0.00020268,2]
[349953567,1737534651335,-500.0,0.00020268,2]
[349953568,1737534651345,-500.0,0.00020268,2]
[349953569,1737534651355,-607.92,0.00020268,2]
[349953570,1737534651365,-500.0,0.00020268,2]
[349953571,1737534651374,-500.0,0.00020268,2]
[349953572,1737534651384,-500.0,0.00020268,2]
[349953573,1737534651394,-500.0,0.00020268,2]
[349953574,1737534651404,-500.0,0.00020268,2]
[349953575,1737534651414,-500.0,0.00020268,2]
[349953576,1737534651423,-500.0,0.00020268,2]
[349953577,1737534651433,-500.0,0.00020268,2]
[349953578,1737534651443,-520.9,0.00020268,2]
[349953579,1737534651453,-514.0506746,0.00020268,2]
[349953580,1737534651462,-500.0,0.00020268,2]
[349953581,1737534651472,-668.54,0.00020268,2]
[349953582,1737534651483,-2520.05,0.00020268,2]
[349953583,1737534651494,-500.0,0.00020268,2]
[349953584,1737534651503,-2961.88,0.00020268,2]
[349953585,1737534651514,-500.0,0.00020268,2]
[349953586,1737534651529,-905.46,0.00020268,2]
[349953587,1737534651540,-5597.14,0.00020268,2]
[349953588,1737534651549,-500.0,0.00020268,2]
[349953589,1737534651559,-500.0,0.00020268,2]
[349953590,1737534651568,-9273.24,0.00020268,2]
[349953591,1737534651578,-500.0,0.00020268,2]
[349953592,1737534651588,-1227.0,0.00020268,2]
[349953593,1737534651601,-695.5,0.00020268,2]
[349953594,1737534651610,-923.7,0.00020268,2]
[349953595,1737534651620,-500.0,0.00020268,2]
[349953596,1737534651630,-3018.93,0.00020268,2]
[349953597,1737534651640,-447.09,0.00020268,2]
[349953598,1737534651649,-500.0,0.00020268,2]
[349953599,1737534651659,-500.0,0.00020268,2]
[349953600,1737534651669,-500.0,0.00020268,2]
[349953601,1737534651678,-708.43,0.00020268,2]
[349953602,1737534651688,-2798.83,0.00020268,2]
[349953603,1737534651698,-1275.81,0.00020268,2]
[349953604,1737534651707,-952.33,0.00020268,2]
[349953605,1737534651717,-500.0,0.00020268,2]
[349953606,1737534651727,-679.69,0.00020268,2]
[349953607,1737534651736,-1367.21,0.00020268,2]
[349953608,1737534651746,-1822.07,0.00020268,2]
[349953609,1737534651756,-500.0,0.00020268,2]
[349953610,1737534651765,-500.0,0.00020268,2]
[349953611,1737534651775,-579.19,0.00020268,2]
[349953612,1737534651784,-1523.71,0.00020268,2]
[349953613,1737534651794,-1989.41,0.00020268,2]
[349953614,1737534651803,-1111.48,0.00020268,2]
[349953615,1737534651812,-500.0,0.00020268,2]
[349953616,1737534651821,-585.36,0.00020268,2]
[349953617,1737534651831,-500.0,0.00020268,2]
[349953618,1737534651840,-969.23,0.00020268,2]
[349953619,1737534651850,-1176.75,0.00020268,2]
[349953620,1737534651860,-2321.67,0.00020268,2]
[349953621,1737534651870,-1016.17,0.00020268,2]
[349953622,1737534651879,-651.97,0.00020268,2]
[349953623,1737534651888,-890.17,0.00020268,2]
[349953624,1737534651897,-1287.3,0.00020268,2]
[349953625,1737534651907,-500.0,0.00020268,2]
[349953626,1737534651918,-512.40440752,0.00020268,2]
[349953627,1737534651927,-500.0,0.00020268,2]
[349953628,1737534651937,-500.0,0.00020268,2]
[349953629,1737534651947,-2276.36,0.00020268,2]
[349953630,1737534651957,-2974.96,0.00020268,2]
[349953631,1737534651967,-647.81,0.00020268,2]
[349953632,1737534651976,-500.0,0.00020268,2]
[349953633,1737534651986,-500.0,0.00020268,2]
[349953634,1737534651995,-894.7,0.00020268,2]
[349953635,1737534652004,-2510.85,0.00020268,2]
[349953636,1737534652014,-934.57,0.00020268,2]
[349953637,1737534652025,-500.0,0.00020268,2]
[349953638,1737534652035,-500.0,0.00020268,2]
[349953639,1737534652045,-1575.38,0.00020268,2]
[349953640,1737534652054,-546.54,0.00020268,2]
[349953641,1737534652064,-3008.08,0.00020268,2]
[349953642,1737534652074,-500.0,0.00020268,2]
[349953643,1737534652084,-500.0,0.00020268,2]
[349953644,1737534652094,-713.84,0.00020268,2]
[349953645,1737534652103,-566.20907397,0.00020268,2]
[349953646,1737534652112,-696.86,0.00020268,2]
[349953647,1737534652122,-500.0,0.00020268,2]
[349953648,1737534652131,-500.0,0.00020268,2]
[349953649,1737534652141,-500.0,0.00020268,2]
[349953650,1737534652150,-614.95,0.00020268,2]
[349953651,1737534652160,-2476.15,0.00020268,2]
[349953652,1737534652171,-500.0,0.00020268,2]
[349953653,1737534652180,-515.75,0.00020268,2]
[349953654,1737534652191,-500.0,0.00020268,2]
[349953655,1737534652201,-500.0,0.00020268,2]
[349953656,1737534652211,-500.0,0.00020268,2]
[349953657,1737534652221,-589.48,0.00020268,2]
[349953658,1737534652231,-500.0,0.00020268,2]
[349953659,1737534652240,-775.02,0.00020269,2]
[349953660,1737534652250,-500.0,0.00020269,2]
[349953661,1737534652260,-947.67,0.00020269,2]
[349953662,1737534652269,-1037.53,0.00020269,2]
[349953663,1737534652279,-500.0,0.00020269,2]
[349953664,1737534652289,-700.29,0.00020269,2]
[349953665,1737534652298,-636.14,0.00020269,2]
[349953666,1737534652308,-576.43,0.00020269,2]
[349953667,1737534652317,-500.0,0.00020269,2]
[349953668,1737534652327,-500.0,0.00020269,2]
[349953669,1737534652337,-500.0,0.00020269,2]
[349953670,1737534652347,-500.0,0.00020269,2]
[349953671,1737534652356,-564.75,0.00020269,2]
[349953672,1737534652365,-500.0,0.00020269,2]
[349953673,1737534652375,-500.0,0.00020269,2]
[349953674,1737534652384,-550.57,0.00020269,2]
[349953675,1737534652394,-991.83,0.00020269,2]
[349953676,1737534652403,-1008.4,0.00020269,2]
[349953677,1737534652413,-500.0,0.00020269,2]
[349953678,1737534652422,-500.0,0.00020269,2]
[349953679,1737534652431,-500.0,0.00020269,2]
[349953680,1737534652441,-500.0,0.00020269,2]
[349953681,1737534652450,-500.0,0.00020269,2]
[349953682,1737534652459,-500.0,0.00020269,2]
[349953683,1737534652469,-515.74805263,0.00020269,2]
[349953684,1737534652478,-500.0,0.00020269,2]
[349953685,1737534652488,-694.5,0.00020269,2]
[349953686,1737534652497,-1202.02,0.00020269,2]
[349953687,1737534652507,-1070.48,0.00020269,2]
[349953688,1737534652521,-932.56,0.00020269,2]
[349953689,1737534652531,-560.85,0.00020269,2]
[349953690,1737534652540,-706.83,0.00020269,2]
[349953691,1737534652550,-1361.57,0.00020269,2]
[349953692,1737534652560,-644.06,0.00020269,2]
[349953693,1737534652570,-624.83,0.00020269,2]
[349953694,1737534652579,-796.67,0.00020269,2]
[349953695,1737534652588,-500.0,0.00020269,2]
[349953696,1737534652597,-1438.162394,0.00020269,2]
[349953697,1737534652607,-500.0,0.00020269,2]
[349953698,1737534652616,-1377.23,0.00020269,2]
[349953699,1737534652626,-1229.49,0.00020269,2]
[349953700,1737534652635,-880.9,0.00020269,2]
[349953701,1737534652654,-500.0,0.00020269,2]
[349953702,1737534652664,-500.0,0.00020269,2]
[349953703,1737534652674,-500.0,0.00020269,2]
[349953704,1737534652683,-1013.44,0.00020269,2]
[349953705,1737534652692,-950.86,0.00020269,2]
[349953706,1737534652702,-677.67,0.00020269,2]
[349953707,1737534652711,-948.099067,0.00020269,2]
[349953708,1737534652720,-1398.08,0.00020269,2]
[349953709,1737534652730,-916.72,0.00020269,2]
[349953710,1737534652739,-1072.95,0.00020269,2]
[349953711,1737534652749,-208.57681519,0.00020269,2]
[349953712,1737534652758,-1526.48,0.00020269,2]
[349953713,1737534652768,-698.84,0.00020269,2]
[349953714,1737534652777,-500.0,0.00020269,2]
[349953715,1737534652787,-615.72,0.00020269,2]
[349953716,1737534652796,-500.0,0.00020269,2]
[349953717,1737534652962,-500.0,0.00020269,2]
[349953718,1737534652974,-500.0,0.00020269,2]
[349953719,1737534652984,-1074.97,0.00020269,2]
[349953720,1737534652993,-500.0,0.00020269,2]
[349953721,1737534653002,-500.0,0.00020269,2]
[349953722,1737534653011,-500.0,0.00020269,2]
[349953723,1737534653021,-500.0,0.00020269,2]
[349953724,1737534653030,-500.0,0.00020269,2]
[349953725,1737534653040,-603.53,0.00020269,2]
[349953726,1737534653049,-500.0,0.00020269,2]
[349953727,1737534653059,-1670.42,0.00020269,2]
[349953728,1737534653068,-500.0,0.00020269,2]
[349953729,1737534653077,-500.0,0.00020269,2]
[349953730,1737534653086,-1037.24,0.00020269,2]
[349953731,1737534653096,-1018.24,0.00020269,2]
[349953732,1737534653105,-500.0,0.00020269,2]
[349953733,1737534653115,-500.0,0.00020269,2]
[349953734,1737534653125,-500.0,0.00020269,2]
[349953735,1737534653134,-895.81,0.00020269,2]
[349953736,1737534653144,-1128.14,0.00020269,2]
[349953737,1737534653154,-1063.29,0.00020269,2]
[349953738,1737534653164,-500.0,0.00020269,2]
[349953739,1737534653173,-500.0,0.00020269,2]
[349953740,1737534653183,-1229.9,0.00020269,2]
[349953741,1737534653192,-500.0,0.00020269,2]
[349953742,1737534653201,-910.85,0.00020269,2]
[349953743,1737534653210,-713.75,0.00020269,2]
[349953744,1737534653219,-976.93,0.00020269,2]
[349953745,1737534653228,-347.60877266,0.00020269,2]
[349953746,1737534653237,-500.0,0.00020269,2]
[349953747,1737534653247,-1056.04,0.00020269,2]
[349953748,1737534653256,-500.0,0.00020269,2]
[349953749,1737534653266,-500.0,0.00020269,2]
[349953750,1737534653276,-880.91,0.00020269,2]
[349953751,1737534653286,-275.86133771,0.00020269,2]
[349953752,1737534653295,-542.64,0.00020269,2]
[349953753,1737534653304,-620.06,0.00020269,2]
[349953754,1737534653314,-1345.98,0.00020269,2]
[349953755,1737534653323,-940.54,0.00020269,2]
[349953756,1737534653333,-1177.26,0.00020269,2]
[349953757,1737534653344,-1602.21,0.00020269,2]
[349953758,1737534653354,-500.0,0.00020269,2]
[349953759,1737534653363,-500.0,0.00020269,2]
[349953760,1737534653373,-650.05,0.00020269,2]
[349953761,1737534653384,-2865.39,0.00020269,2]
[349953762,1737534653393,-500.0,0.00020269,2]
[349953763,1737534653403,-1460.66,0.00020269,2]
[349953764,1737534653414,-903.86,0.00020269,2]
[349953765,1737534653423,-910.11,0.00020269,2]
[349953766,1737534653433,-1447.14,0.00020269,2]
[349953767,1737534653443,-2028.26,0.00020269,2]
[349953768,1737534653452,-2040.82,0.00020269,2]
[349953769,1737534653461,-710.66,0.00020269,2]
[349953770,1737534653471,-1247.1,0.00020269,2]
[349953771,1737534653481,-575.18075336,0.00020269,2]
[349953772,1737534653491,-1194.86,0.00020269,2]
[349953773,1737534653501,-999.9,0.00020269,2]
[349953774,1737534653512,-500.0,0.00020269,2]
[349953775,1737534653524,-1111.37,0.00020269,2]
[349953776,1737534653533,-2552.95,0.00020269,2]
[349953777,1737534653543,-1490.37,0.00020269,2]
[349953778,1737534653551,-1149.55,0.00020269,2]
[349953779,1737534653560,-527.78,0.00020269,2]
[349953780,1737534653570,-261.15535836,0.00020269,2]
[349953781,1737534653580,-5785.18,0.00020269,2]
[349953782,1737534653589,-634.52,0.00020269,2]
[349953783,1737534653600,-956.77,0.00020269,2]
[349953784,1737534653611,-1268.92,0.00020269,2]
[349953785,1737534653622,-2423.9,0.00020269,2]
[349953786,1737534653631,-500.0,0.00020269,2]
[349953787,1737534653642,-2326.11,0.00020269,2]
[349953788,1737534653652,-775.29,0.00020269,2]
[349953789,1737534653663,-966.49,0.00020269,2]
[349953790,1737534653674,-500.0,0.00020269,2]
[349953791,1737534653683,-3638.14,0.00020269,2]
[349953792,1737534653692,-160.412754,0.00020269,2]
[349953793,1737534653702,-614.54,0.00020269,2]
[349953794,1737534653713,-657.7,0.00020269,2]
[349953795,1737534653723,-3328.69,0.00020269,2]
[349953796,1737534653733,-5075.84,0.00020269,2]
[349953797,1737534653742,-1598.91,0.00020269,2]
[349953798,1737534653753,-1452.67,0.00020269,2]
[349953799,1737534653763,-500.0,0.00020269,2]
[349953800,1737534653773,-914.4,0.00020269,2]
[349953801,1737534653785,-2138.98,0.00020269,2]
[349953802,1737534653795,-500.0,0.00020269,2]
[349953803,1737534653804,-500.0,0.00020269,2]
[349953804,1737534653813,-506.53,0.00020269,2]
[349953805,1737534653823,-1155.63,0.00020269,2]
[349953806,1737534653833,-500.0,0.00020269,2]
[349953807,1737534653843,-2857.9,0.00020269,2]
[349953808,1737534653852,-1293.83,0.00020269,2]
[349953809,1737534653861,-500.0,0.00020269,2]
[349953810,1737534653870,-3678.54,0.00020269,2]
[349953811,1737534653880,-500.0,0.00020269,2]
[349953812,1737534653890,-3091.61,0.00020269,2]
[349953813,1737534653900,-547.79,0.00020269,2]
[349953814,1737534653909,-3070.73,0.00020269,2]
[349953815,1737534653921,-957.09,0.00020269,2]
[349953816,1737534653930,-853.35,0.00020269,2]
[349953817,1737534653940,-1475.16,0.00020269,2]
[349953818,1737534653951,-676.64,0.00020269,2]
[349953819,1737534653962,-1214.2,0.00020269,2]
[349953820,1737534653974,-693.59,0.00020269,2]
[349953821,1737534653984,-1500.17,0.00020269,2]
[349953822,1737534653993,-500.0,0.00020269,2]
[349953823,1737534654002,-4612.68,0.00020269,2]
[349953824,1737534654012,-500.0,0.00020269,2]
[349953825,1737534654021,-500.0,0.00020269,2]
[349953826,1737534654030,-695.39,0.00020269,2]
[349953827,1737534654039,-999.84,0.00020269,2]
[349953828,1737534654048,-500.0,0.00020269,2]
[349953829,1737534654057,-500.0,0.00020269,2]
[349953830,1737534654066,-2191.68,0.00020269,2]
[349953831,1737534654075,-500.0,0.00020269,2]
[349953832,1737534654084,-533.07,0.00020269,2]
[349953833,1737534654093,-1250.87,0.00020269,2]
[349953834,1737534654102,-500.0,0.00020269,2]
[349953835,1737534654112,-500.0,0.00020269,2]
[349953836,1737534654121,-500.0,0.00020269,2]
[349953837,1737534654131,-911.61,0.00020269,2]
[349953838,1737534654140,-500.0,0.00020269,2]
[349953839,1737534654149,-500.0,0.00020269,2]
[349953840,1737534654158,-1011.73,0.00020269,2]
[349953841,1737534654169,-783.63,0.00020269,2]
[349953842,1737534654178,-785.43,0.00020269,2]
[349953843,1737534654187,-665.31,0.00020269,2]
[349953844,1737534654197,-500.0,0.00020269,2]
[349953845,1737534654206,-1768.25,0.00020269,2]
[349953846,1737534654216,-821.28,0.00020269,2]
[349953847,1737534654225,-1086.52,0.00020269,2]
[349953848,1737534654234,-500.0,0.00020269,2]
[349953849,1737534654244,-500.0,0.00020269,2]
[349953850,1737534654253,-587.54,0.00020269,2]
[349953851,1737534654263,-583.26,0.00020269,2]
[349953852,1737534654272,-551.1,0.00020269,2]
[349953853,1737534654281,-500.0,0.00020269,2]
[349953854,1737534654290,-1882.75,0.00020269,2]
[349953855,1737534654299,-1838.57,0.00020269,2]
[349953856,1737534654309,-181.38,0.00020269,2]
[349953857,1737534654318,-500.0,0.00020269,2]
[349953858,1737534654327,-500.0,0.0002027,2]
[349953859,1737534654337,-500.0,0.0002027,2]
[349953860,1737534654346,-500.0,0.0002027,2]
[349953861,1737534654355,-500.0,0.0002027,2]
[349953862,1737534654365,-500.0,0.0002027,2]
[349953863,1737534654375,-500.0,0.0002027,2]
[349953864,1737534654385,-500.0,0.0002027,2]
[349953865,1737534654396,-500.0,0.0002027,2]
[349953866,1737534654405,-722.82,0.0002027,2]
[349953867,1737534654416,-500.0,0.0002027,2]
[349953868,1737534654426,-1357.12,0.0002027,2]
[349953869,1737534654435,-628.45,0.0002027,2]
[349953870,1737534654445,-846.46,0.0002027,2]
[349953871,1737534654455,-751.94,0.0002027,2]
[349953872,1737534654464,-500.0,0.0002027,2]
[349953873,1737534654474,-500.0,0.0002027,2]
[349953874,1737534654484,-500.0,0.0002027,2]
[349953875,1737534654493,-1535.03,0.0002027,2]
[349953876,1737534654503,-1286.53,0.0002027,2]
[349953877,1737534654512,-1081.56,0.0002027,2]
[349953878,1737534654524,-500.0,0.0002027,2]
[349953879,1737534654533,-500.0,0.0002027,2]
[349953880,1737534654542,-500.0,0.0002027,2]
[349953881,1737534654552,-904.23,0.0002027,2]
[349953882,1737534654563,-500.0,0.0002027,2]
[349953883,1737534654572,-500.0,0.0002027,2]
[349953884,1737534654581,-500.0,0.0002027,2]
[349953885,1737534654591,-500.0,0.0002027,2]
[349953886,1737534654601,-500.0,0.00020273,2]
[349953887,1737534654611,-500.0,0.00020273,2]
[349953888,1737534654620,-600.99,0.00020273,2]
[349953889,1737534654630,-676.37,0.00020315,7]
[349953890,1737534654639,-676.37,0.00020315,7]
[349953891,1737534654649,-205.40745367,0.00020317,2]
[349953892,1737534654659,-2987.85,0.00020326,2]
[349953893,1737534654670,-500.0,0.00020356,2]
[349953894,1737534654680,-2504.86,0.00020362,2]
[349953895,1737534654690,-2242.40864827,0.00020382,2]
[349953896,1737534654701,-1545.73220754,0.00020383,2]
[349953897,1737534654712,-205.40745367,0.000204,2]
[349953898,1737534654722,-600.99,0.0002041,2]
[349953899,1737534654731,-585.0,0.0002043,2]
[349953900,1737534654741,-219.81421845,0.00020448,2]
[349953901,1737534654751,-200.0,0.00020467,2]
[349953902,1737534654760,-4291.58,0.00020477,2]
[349953903,1737534654770,-205.40745367,0.00020483,2]
[349953904,1737534654780,-826.36013599,0.000205,2]
[349953905,1737534654789,-1000.75099524,0.00020521,2]
[349953906,1737534654799,-500.0,0.00020542,2]
[349953907,1737534654809,-500.0,0.00020542,2]
[349953908,1737534654819,-500.0,0.00020542,2]
[349953909,1737534654828,-500.0,0.00020542,2]
[349953910,1737534654838,-500.0,0.00020542,2]
[349953911,1737534654848,-500.0,0.00020542,2]
[349953912,1737534654977,-503.79,0.00020542,2]
[349953913,1737534654988,-531.28696287,0.00020542,2]
[349953914,1737534654998,-500.0,0.00020542,2]
[349953915,1737534655007,-500.0,0.00020542,2]
[349953916,1737534655017,-404.77501739,0.00020542,2]
[349953917,1737534655026,-852.68,0.00020542,2]
[349953918,1737534655035,-500.0,0.00020542,2]
[349953919,1737534655045,-500.0,0.00020542,2]
[349953920,1737534655055,-500.0,0.00020542,2]
[349953921,1737534655064,-500.0,0.00020542,2]
[349953922,1737534655073,-602.67,0.00020542,2]
[349953923,1737534655082,-500.0,0.00020542,2]
[349953924,1737534655092,-500.0,0.00020542,2]
[349953925,1737534655101,-500.0,0.00020542,2]
[349953926,1737534655110,-500.0,0.00020542,2]
[349953927,1737534655120,-500.0,0.00020542,2]
[349953928,1737534655130,-500.0,0.00020542,2]
[349953929,1737534655139,-204.5431948,0.00020542,2]
[349953930,1737534655148,-500.0,0.00020542,2]
[349953931,1737534655158,-500.0,0.00020542,2]
[349953932,1737534655169,-647.65,0.00020542,2]
[349953933,1737534655179,-500.0,0.00020542,2]
[349953934,1737534655188,-687.02,0.00020542,2]
[349953935,1737534655198,-500.0,0.00020542,2]
[349953936,1737534655207,-500.0,0.00020542,2]
[349953937,1737534655216,-500.0,0.00020542,2]
[349953938,1737534655226,-500.0,0.00020542,2]
[349953939,1737534655235,-500.0,0.00020542,2]
[349953940,1737534655246,-500.0,0.00020542,2]
[349953941,1737534655256,-944.8,0.00020542,2]
[349953942,1737534655266,-500.0,0.00020542,2]
[349953943,1737534655275,-500.0,0.00020542,2]
[349953944,1737534655284,-607.92,0.00020542,2]
[349953945,1737534655294,-500.0,0.00020542,2]
[349953946,1737534655303,-500.0,0.00020542,2]
[349953947,1737534655313,-500.0,0.00020542,2]
[349953948,1737534655322,-255.38966163,0.00020542,2]
[349953949,1737534655332,-500.0,0.00020542,2]
[349953950,1737534655341,-500.0,0.00020542,2]
[349953951,1737534655350,-500.0,0.00020542,2]
[349953952,1737534655360,-500.0,0.00020542,2]
[349953953,1737534655369,-520.9,0.00020542,2]
[349953954,1737534655379,-500.0,0.00020542,2]
[349953955,1737534655388,-668.54,0.00020542,2]
[349953956,1737534655398,-2520.05,0.00020542,2]
[349953957,1737534655407,-500.0,0.00020542,2]
[349953958,1737534655417,-2961.88,0.00020542,2]
[349953959,1737534655427,-500.0,0.00020542,2]
[349953960,1737534655436,-905.46,0.00020542,2]
[349953961,1737534655446,-5597.14,0.00020542,2]
[349953962,1737534655456,-500.0,0.00020542,2]
[349953963,1737534655465,-500.0,0.00020542,2]
[349953964,1737534655476,-9273.24,0.00020542,2]
[349953965,1737534655485,-547.45933333,0.00020542,2]
[349953966,1737534655496,-1227.0,0.00020542,2]